fUST/lending_fUST_20240930
["ID","MTS","AMOUNT","RATE_DAILY","PERIOD"]
[339536257,1727682640247,-589.05,0.00014122,2]
[339536259,1727682640258,-550.64489968,0.00014122,2]
[339536261,1727682640269,-500.0,0.00014122,2]
[339536264,1727682640278,-500.0,0.00014122,2]
[339536266,1727682640288,-500.0,0.00014122,2]
[339536268,1727682640298,-1770.36,0.00014122,2]
[339536270,1727682640307,-500.0,0.00014122,2]
[339536272,1727682640316,-500.0,0.00014122,2]
[339536274,1727682640326,-2673.66,0.00014122,2]
[339536276,1727682640336,-500.0,0.00014122,2]
[339536278,1727682640345,-500.0,0.00014122,2]
[339536280,1727682640355,-500.0,0.00014122,2]
[339536281,1727682640365,-754.04,0.00014123,2]
[339536283,1727682640375,-754.04,0.00014123,2]
[339536285,1727682640384,-754.04,0.00014123,2]
[339536287,1727682640394,-754.04,0.00014124,2]
[339536289,1727682640403,-500.0,0.00014124,2]
[339536291,1727682640414,-754.04,0.00014125,2]
[339536293,1727682640423,-754.04,0.00014125,2]
[339536295,1727682640434,-754.04,0.00014125,2]
[339536297,1727682640445,-754.04,0.00014125,2]
[339536300,1727682640456,-754.04,0.00014125,2]
[339536301,1727682640466,-754.04,0.00014125,2]
[339536303,1727682640475,-754.04,0.00014125,2]
[339536305,1727682640485,-754.04,0.00014125,2]
[339536307,1727682640494,-754.04,0.00014125,2]
[339536309,1727682640503,-754.04,0.00014125,2]
[339536310,1727682640513,-754.04,0.00014125,2]
[339536312,1727682640523,-754.14275624,0.00014125,2]
[339536314,1727682640533,-150.112233,0.000142,2]
[339536316,1727682640543,-150.112233,0.000142,2]
[339536317,1727682640552,-150.112233,0.000142,2]
[339536318,1727682640562,-150.112233,0.000142,2]
[339536320,1727682640572,-150.112233,0.000142,2]
[339536321,1727682640581,-150.112233,0.000142,2]
[339536323,1727682640591,-1115.23152735,0.00014285,2]
[339536324,1727682640600,-150.112233,0.000143,2]
[339536325,1727682640609,-150.112233,0.000143,2]
[339536326,1727682640618,-150.112233,0.000143,2]
[339536327,1727682640628,-150.112233,0.000143,2]
[339536328,1727682640638,-150.112233,0.000143,2]
[339536329,1727682640647,-214.42230108,0.00014362,2]
[339536330,1727682640656,-194.50284048,0.00014362,2]
[339536331,1727682640665,-624.12613714,0.00014362,2]
[339536332,1727682640674,-37208.9726429,0.00014363,2]
[339536333,1727682640684,-40857.173137,0.00014363,2]
[339536334,1727682640693,-500.0,0.00014365,2]
[339536335,1727682640702,-502.66891151,0.00014373,2]
[339536336,1727682640711,-500.0,0.00014373,2]
[339536337,1727682640721,-500.0,0.00014373,2]
[339536338,1727682640731,-562.82550138,0.00014373,2]
[339536339,1727682640741,-500.0,0.00014373,2]
[339536340,1727682640750,-500.0,0.00014373,2]
[339536341,1727682640759,-500.0,0.00014373,2]
[339536342,1727682640769,-500.51863415,0.00014373,2]
[339536343,1727682640778,-500.0,0.00014373,2]
[339536344,1727682640788,-500.0,0.00014373,2]
[339536345,1727682640797,-502.66329194,0.00014373,2]
[339536346,1727682640806,-500.37616175,0.00014373,2]
[339536347,1727682640815,-161.18330768,0.00014373,2]
[339536348,1727682640825,-549.80656059,0.00014373,2]
[339536349,1727682640835,-500.0,0.00014373,2]
[339536350,1727682640844,-500.0,0.00014373,2]
[339536351,1727682640853,-500.0,0.00014373,2]
[339536352,1727682640862,-200.07428194,0.00014373,2]
[339536353,1727682640872,-500.0,0.00014373,2]
[339536354,1727682640881,-500.0,0.00014373,2]
[339536355,1727682640891,-500.0,0.00014373,2]
[339536356,1727682640901,-500.0,0.00014373,2]
[339536357,1727682640910,-500.0,0.00014373,2]
[339536358,1727682640919,-500.0,0.00014373,2]
[339536359,1727682640928,-500.0,0.00014373,2]
[339536360,1727682640938,-500.0,0.00014373,2]
[339536361,1727682640947,-500.0,0.00014373,2]
[339536362,1727682640956,-500.0,0.00014373,2]
[339536363,1727682640965,-186044.863214,0.00014375,2]
[339536364,1727682640974,-204285.865685,0.00014375,2]
[339536365,1727682640983,-454.007369,0.00014384,2]
[339536366,1727682640993,-500.0,0.00014385,2]
[339536367,1727682641002,-500.0,0.00014385,2]
[339536368,1727682641011,-500.0,0.00014385,2]
[339536369,1727682641021,-691.06,0.00014385,2]
[339536370,1727682641030,-513.20811323,0.00014385,2]
[339536371,1727682641041,-428.01659407,0.00014385,2]
[339536372,1727682641050,-500.0,0.00014385,2]
[339536373,1727682641059,-500.0,0.00014385,2]
[339536374,1727682641069,-500.0,0.00014385,2]
[339536375,1727682641078,-500.0,0.00014385,2]
[339536376,1727682641088,-511.87395407,0.00014385,2]
[339536377,1727682641097,-500.0,0.00014385,2]
[339536378,1727682641107,-500.0,0.00014385,2]
[339536379,1727682641116,-1210.44,0.00014385,2]
[339536380,1727682641125,-500.0,0.00014385,2]
[339536381,1727682641133,-500.0,0.00014385,2]
[339536382,1727682641143,-500.0,0.00014385,2]
[339536383,1727682641153,-500.0,0.00014385,2]
[339536384,1727682641162,-519.33805047,0.00014385,2]
[339536385,1727682641172,-500.0,0.00014385,2]
[339536386,1727682641181,-500.0,0.00014385,2]
[339536387,1727682641191,-501.87,0.00014385,2]
[339536388,1727682641201,-500.0,0.00014385,2]
[339536389,1727682641210,-500.0,0.00014385,2]
[339536390,1727682641220,-500.0,0.00014385,2]
[339536391,1727682641230,-500.0,0.00014385,2]
[339536392,1727682641240,-500.0,0.00014385,2]
[339536393,1727682641251,-500.0,0.00014385,2]
[339536394,1727682641261,-500.0,0.00014385,2]
[339536395,1727682641271,-547.78286686,0.00014385,2]
[339536396,1727682641280,-500.0,0.00014385,2]
[339536397,1727682641290,-500.0,0.00014385,2]
[339536398,1727682641300,-500.0,0.00014385,2]
[339536399,1727682641309,-500.0,0.00014385,2]
[339536400,1727682641319,-602.36,0.00014385,2]
[339536401,1727682641328,-508.81,0.00014385,2]
[339536402,1727682641338,-500.0,0.00014385,2]
[339536403,1727682641348,-500.0,0.00014385,2]
[339536404,1727682641361,-500.0,0.00014385,2]
[339536405,1727682641373,-565.61,0.00014385,2]
[339536406,1727682641382,-911.68,0.00014385,2]
[339536407,1727682641391,-500.0,0.00014385,2]
[339536408,1727682641400,-500.0,0.00014385,2]
[339536409,1727682641410,-500.0,0.00014385,2]
[339536410,1727682641420,-500.0,0.00014385,2]
[339536411,1727682641430,-500.0,0.00014385,2]
[339536412,1727682641440,-500.0,0.00014385,2]
[339536413,1727682641450,-500.0,0.00014385,2]
[339536414,1727682641459,-500.0,0.00014385,2]
[339536415,1727682641468,-500.0,0.00014385,2]
[339536416,1727682641477,-171.87647029,0.00014385,2]
[339536417,1727682641487,-500.0,0.00014385,2]
[339536418,1727682641496,-500.0,0.00014385,2]
[339536419,1727682641506,-500.0,0.00014385,2]
[339536420,1727682641517,-500.0,0.00014385,2]
[339536421,1727682641526,-500.0,0.00014385,2]
[339536422,1727682641536,-500.0,0.00014385,2]
[339536423,1727682641545,-500.0,0.00014385,2]
[339536424,1727682641554,-500.0,0.00014385,2]
[339536425,1727682641563,-500.0,0.00014385,2]
[339536426,1727682641573,-506.67,0.00014385,2]
[339536427,1727682641583,-579.35,0.00014385,2]
[339536428,1727682641596,-500.0,0.00014385,2]
[339536429,1727682641605,-500.0,0.00014385,2]
[339536430,1727682641614,-500.0,0.00014385,2]
[339536431,1727682641624,-500.0,0.00014385,2]
[339536432,1727682641633,-500.0,0.00014385,2]
[339536433,1727682641642,-620.36,0.00014385,2]
[339536434,1727682641653,-500.0,0.00014385,2]
[339536435,1727682641661,-500.0,0.00014385,2]
[339536436,1727682641671,-500.0,0.00014385,2]
[339536437,1727682641680,-500.0,0.00014385,2]
[339536438,1727682641690,-500.0,0.00014385,2]
[339536439,1727682641700,-634.4,0.00014385,2]
[339536440,1727682641709,-500.0,0.00014385,2]
[339536441,1727682641719,-500.0,0.00014385,2]
[339536442,1727682641729,-500.0,0.00014385,2]
[339536443,1727682641738,-500.0,0.00014385,2]
[339536444,1727682641747,-500.0,0.00014385,2]
[339536445,1727682641757,-500.0,0.00014385,2]
[339536446,1727682641767,-500.0,0.00014385,2]
[339536447,1727682641777,-533.16618669,0.00014385,2]
[339536448,1727682641786,-2900.38,0.00014385,2]
[339536449,1727682641796,-500.0,0.00014385,2]
[339536450,1727682641806,-500.0,0.00014385,2]
[339536451,1727682641815,-500.0,0.00014385,2]
[339536452,1727682641824,-500.0,0.00014385,2]
[339536453,1727682641834,-500.0,0.00014385,2]
[339536454,1727682641844,-500.0,0.00014385,2]
[339536455,1727682641854,-500.0,0.00014385,2]
[339536456,1727682641864,-500.0,0.00014385,2]
[339536457,1727682641874,-500.0,0.00014385,2]
[339536458,1727682641883,-286.99403469,0.00014385,2]
[339536459,1727682641893,-500.0,0.00014385,2]
[339536460,1727682641903,-582.4,0.00014385,2]
[339536461,1727682641913,-500.0,0.00014385,2]
[339536462,1727682641922,-500.0,0.00014385,2]
[339536463,1727682641931,-500.0,0.00014385,2]
[339536464,1727682641941,-500.0,0.00014385,2]
[339536465,1727682641951,-500.0,0.00014385,2]
[339536466,1727682641961,-1452.45,0.00014385,2]
[339536467,1727682641970,-451.56552977,0.00014385,2]
[339536468,1727682641981,-500.0,0.00014385,2]
[339536469,1727682641990,-654.28,0.00014385,2]
[339536470,1727682641999,-500.0,0.00014385,2]
[339536471,1727682642008,-500.0,0.00014385,2]
[339536472,1727682642019,-500.0,0.00014385,2]
[339536473,1727682642028,-500.0,0.00014385,2]
[339536474,1727682642038,-500.0,0.00014385,2]
[339536475,1727682642047,-500.0,0.00014385,2]
[339536476,1727682642056,-361.51048052,0.00014385,2]
[339536477,1727682642066,-612.08,0.00014385,2]
[339536478,1727682642075,-771.26,0.00014385,2]
[339536479,1727682642085,-500.0,0.00014385,2]
[339536480,1727682642094,-500.0,0.00014385,2]
[339536481,1727682642105,-500.0,0.00014385,2]
[339536482,1727682642116,-500.0,0.00014385,2]
[339536483,1727682642126,-617.2132994,0.00014385,2]
[339536484,1727682642136,-500.0,0.00014385,2]
[339536485,1727682642146,-500.0,0.00014385,2]
[339536486,1727682642156,-500.0,0.00014385,2]
[339536487,1727682642166,-500.0,0.00014385,2]
[339536488,1727682642175,-500.0,0.00014385,2]
[339536489,1727682642184,-500.0,0.00014385,2]
[339536490,1727682642195,-588.18,0.00014385,2]
[339536491,1727682642204,-617.46,0.00014385,2]
[339536492,1727682642213,-500.0,0.00014385,2]
[339536493,1727682642222,-500.0,0.00014385,2]
[339536494,1727682642232,-500.0,0.00014385,2]
[339536495,1727682642241,-505.03,0.00014385,2]
[339536496,1727682642250,-500.0,0.00014385,2]
[339536497,1727682642260,-610.24,0.00014385,2]
[339536498,1727682642271,-500.0,0.00014385,2]
[339536499,1727682642280,-500.0,0.00014385,2]
[339536500,1727682642289,-504.64391322,0.00014385,2]
[339536501,1727682642299,-500.0,0.00014385,2]
[339536502,1727682642309,-500.0,0.00014385,2]
[339536503,1727682642318,-748.52,0.00014385,2]
[339536504,1727682642328,-500.0,0.00014385,2]
[339536505,1727682642337,-505.02327933,0.00014385,2]
[339536506,1727682642347,-500.0,0.00014385,2]
[339536507,1727682642356,-500.0,0.00014385,2]
[339536508,1727682642367,-500.0,0.00014385,2]
[339536509,1727682642377,-390.75486154,0.00014385,2]
[339536510,1727682642386,-500.0,0.00014385,2]
[339536511,1727682642395,-500.0,0.00014385,2]
[339536512,1727682642405,-500.0,0.00014385,2]
[339536513,1727682642415,-335.22293756,0.00014385,2]
[339536514,1727682642424,-500.0,0.00014385,2]
[339536515,1727682642433,-500.0,0.00014385,2]
[339536516,1727682642443,-500.0,0.00014385,2]
[339536517,1727682642453,-500.0,0.00014385,2]
[339536518,1727682642464,-500.0,0.00014385,2]
[339536519,1727682642473,-500.0,0.00014385,2]
[339536520,1727682642482,-905.98,0.00014385,2]
[339536521,1727682642492,-500.0,0.00014385,2]
[339536522,1727682642502,-500.0,0.00014385,2]
[339536523,1727682642512,-566.05,0.00014385,2]
[339536524,1727682642522,-500.0,0.00014385,2]
[339536525,1727682642531,-500.0,0.00014385,2]
[339536526,1727682642541,-500.0,0.00014385,2]
[339536527,1727682642550,-500.0,0.00014385,2]
[339536528,1727682642559,-500.0,0.00014385,2]
[339536529,1727682642569,-500.0,0.00014385,2]
[339536530,1727682642578,-500.0,0.00014385,2]
[339536531,1727682642587,-500.0,0.00014385,2]
[339536532,1727682642597,-500.0,0.00014385,2]
[339536533,1727682642606,-835.09,0.00014385,2]
[339536534,1727682642616,-500.0,0.00014385,2]
[339536535,1727682642625,-851.46,0.00014385,2]
[339536536,1727682642634,-585.88,0.00014385,2]
[339536537,1727682642646,-500.0,0.00014385,2]
[339536538,1727682642655,-586.47,0.00014385,2]
[339536539,1727682642664,-500.0,0.00014385,2]
[339536540,1727682642674,-500.0,0.00014385,2]
[339536541,1727682642683,-500.0,0.00014385,2]
[339536542,1727682642692,-500.0,0.00014385,2]
[339536543,1727682642702,-500.0,0.00014385,2]
[339536544,1727682642711,-1690.55,0.00014385,2]
[339536545,1727682642721,-500.0,0.00014385,2]
[339536546,1727682642730,-500.0,0.00014385,2]
[339536547,1727682642739,-500.0,0.00014385,2]
[339536548,1727682642749,-657.67,0.00014385,2]
[339536549,1727682642759,-695.49,0.00014385,2]
[339536550,1727682642768,-764.21,0.00014385,2]
[339536551,1727682642778,-500.0,0.00014385,2]
[339536552,1727682642787,-500.0,0.00014385,2]
[339536553,1727682642796,-404.62587969,0.00014385,2]
[339536554,1727682642805,-500.0,0.00014385,2]
[339536555,1727682642815,-500.0,0.00014385,2]
[339536556,1727682642825,-500.0,0.00014385,2]
[339536557,1727682642835,-500.0,0.00014385,2]
[339536559,1727682642846,-500.0,0.00014385,2]
[339536561,1727682642856,-500.0,0.00014385,2]
[339536562,1727682642866,-500.0,0.00014385,2]
[339536563,1727682642887,-500.0,0.00014385,2]
[339536565,1727682642898,-500.0,0.00014385,2]
[339536567,1727682642907,-501.21,0.00014385,2]
[339536569,1727682642917,-500.0,0.00014385,2]
[339536572,1727682642927,-504.89026514,0.00014385,2]
[339536576,1727682642938,-500.0,0.00014385,2]
[339536579,1727682642948,-500.0,0.00014385,2]
[339536581,1727682642958,-2543.42,0.00014385,2]
[339536583,1727682642969,-500.0,0.00014385,2]
[339536585,1727682642979,-500.0,0.00014385,2]
[339536587,1727682642989,-500.0,0.00014385,2]
[339536588,1727682642999,-500.0,0.00014385,2]
[339536589,1727682643008,-622.12,0.00014385,2]
[339536590,1727682643019,-500.0,0.00014385,2]
[339536591,1727682643029,-500.0,0.00014385,2]
[339536593,1727682643038,-500.0,0.00014385,2]
[339536594,1727682643048,-500.0,0.00014385,2]
[339536595,1727682643058,-1691.22,0.00014385,2]
[339536596,1727682643068,-2200.34,0.00014385,2]
[339536597,1727682643078,-517.81193335,0.00014385,2]
[339536598,1727682643088,-500.0,0.00014385,2]
[339536599,1727682643098,-500.0,0.00014385,2]
[339536600,1727682643107,-1044.95,0.00014385,2]
[339536601,1727682643117,-511.71,0.00014385,2]
[339536602,1727682643127,-500.0,0.00014385,2]
[339536603,1727682643136,-500.0,0.00014385,2]
[339536604,1727682643146,-762.6,0.00014385,2]
[339536605,1727682643156,-500.0,0.00014385,2]
[339536606,1727682643166,-500.0,0.00014385,2]
[339536607,1727682643176,-500.0,0.00014385,2]
[339536608,1727682643186,-816.54,0.00014385,2]
[339536609,1727682643195,-500.0,0.00014385,2]
[339536611,1727682643205,-500.0,0.00014385,2]
[339536612,1727682643215,-500.0,0.00014385,2]
[339536613,1727682643225,-741.56,0.00014385,2]
[339536614,1727682643234,-500.0,0.00014385,2]
[339536615,1727682643244,-500.0,0.00014385,2]
[339536616,1727682643254,-529.52549264,0.00014385,2]
[339536618,1727682643264,-500.0,0.00014385,2]
[339536619,1727682643277,-500.0,0.00014385,2]
[339536620,1727682643287,-500.0,0.00014385,2]
[339536621,1727682643297,-500.0,0.00014385,2]
[339536622,1727682643307,-500.0,0.00014385,2]
[339536624,1727682643317,-500.0,0.00014385,2]
[339536625,1727682643328,-500.0,0.00014385,2]
[339536626,1727682643338,-500.0,0.00014385,2]
[339536627,1727682643348,-700.87,0.00014385,2]
[339536628,1727682643359,-500.0,0.00014385,2]
[339536629,1727682643372,-565.73,0.00014385,2]
[339536630,1727682643381,-1340.48,0.00014385,2]
[339536631,1727682643391,-500.0,0.00014385,2]
[339536632,1727682643402,-500.0,0.00014385,2]
[339536633,1727682643411,-182.41270686,0.00014385,2]
[339536634,1727682643421,-500.0,0.00014385,2]
[339536635,1727682643431,-500.0,0.00014385,2]
[339536636,1727682643441,-500.0,0.00014385,2]
[339536637,1727682643453,-500.0,0.00014385,2]
[339536638,1727682643463,-500.0,0.00014385,2]
[339536639,1727682643474,-500.0,0.00014385,2]
[339536640,1727682643486,-1067.73,0.00014385,2]
[339536642,1727682643496,-500.0,0.00014385,2]
[339536644,1727682643506,-500.0,0.00014385,2]
[339536646,1727682643516,-500.0,0.00014385,2]
[339536647,1727682643530,-500.0,0.00014385,2]
[339536648,1727682643539,-590.29,0.00014385,2]
[339536649,1727682643549,-500.0,0.00014385,2]
[339536650,1727682643559,-500.0,0.00014385,2]
[339536651,1727682643569,-520.70008841,0.00014385,2]
[339536652,1727682643579,-509.5098623,0.00014385,2]
[339536653,1727682643589,-500.0,0.00014385,2]
[339536654,1727682643599,-500.0,0.00014385,2]
[339536655,1727682643608,-500.0,0.00014385,2]
[339536656,1727682643836,-500.0,0.00014385,2]
[339536657,1727682643846,-500.0,0.00014385,2]
[339536658,1727682643855,-500.0,0.00014385,2]
[339536659,1727682643865,-500.0,0.00014385,2]
[339536660,1727682643875,-463.69816274,0.00014385,2]
[339536661,1727682643889,-500.0,0.00014385,2]
[339536662,1727682643899,-500.0,0.00014385,2]
[339536663,1727682643909,-500.0,0.00014385,2]
[339536664,1727682643919,-500.0,0.00014385,2]
[339536665,1727682643929,-500.0,0.00014385,2]
[339536666,1727682643939,-500.0,0.00014385,2]
[339536667,1727682643949,-500.0,0.00014385,2]
[339536668,1727682643959,-678.05,0.00014385,2]
[339536669,1727682643970,-500.0,0.00014385,2]
[339536670,1727682643980,-526.76,0.00014385,2]
[339536671,1727682643990,-819.42,0.00014385,2]
[339536672,1727682644000,-618.1,0.00014385,2]
[339536673,1727682644009,-557.13,0.00014385,2]
[339536674,1727682644019,-500.0,0.00014385,2]
[339536675,1727682644029,-500.0,0.00014385,2]
[339536676,1727682644039,-502.52,0.00014385,2]
[339536677,1727682644048,-500.0,0.00014385,2]
[339536678,1727682644058,-2926.14,0.00014385,2]
[339536679,1727682644068,-500.0,0.00014385,2]
[339536680,1727682644078,-500.0,0.00014385,2]
[339536681,1727682644088,-500.0,0.00014385,2]
[339536682,1727682644097,-283.15524528,0.00014385,2]
[339536683,1727682644107,-500.0,0.00014385,2]
[339536684,1727682644118,-500.0,0.00014385,2]
[339536685,1727682644127,-500.0,0.00014385,2]
[339536686,1727682644138,-500.0,0.00014385,2]
[339536687,1727682644148,-500.0,0.00014385,2]
[339536688,1727682644158,-500.0,0.00014385,2]
[339536689,1727682644168,-500.0,0.00014385,2]
[339536690,1727682644178,-500.0,0.00014385,2]
[339536691,1727682644188,-500.0,0.00014385,2]
[339536692,1727682644198,-500.0,0.00014385,2]
[339536693,1727682644209,-556.57,0.00014385,2]
[339536694,1727682644219,-439.42333134,0.00014385,2]
[339536695,1727682644229,-500.0,0.00014385,2]
[339536696,1727682644239,-500.0,0.00014385,2]
[339536697,1727682644249,-500.0,0.00014385,2]
[339536698,1727682644259,-500.0,0.00014385,2]
[339536699,1727682644270,-500.0,0.00014385,2]
[339536700,1727682644280,-503.33247544,0.00014385,2]
[339536701,1727682644290,-500.0,0.00014385,2]
[339536702,1727682644300,-527.33,0.00014385,2]
[339536703,1727682644310,-500.0,0.00014385,2]
[339536704,1727682644320,-539.75,0.00014385,2]
[339536705,1727682644330,-500.0,0.00014385,2]
[339536706,1727682644340,-730.04,0.00014385,2]
[339536707,1727682644350,-500.0,0.00014385,2]
[339536708,1727682644360,-721.3,0.00014385,2]
[339536709,1727682644373,-500.0,0.00014385,2]
[339536710,1727682644383,-1000.19,0.00014385,2]
[339536711,1727682644393,-500.0,0.00014385,2]
[339536712,1727682644402,-647.44416965,0.00014385,2]
[339536713,1727682644413,-539.62,0.00014385,2]
[339536714,1727682644423,-500.0,0.00014385,2]
[339536715,1727682644432,-1125.0,0.00014385,2]
[339536716,1727682644443,-1935.36,0.00014385,2]
[339536717,1727682644453,-500.0,0.00014385,2]
[339536718,1727682644464,-500.0,0.00014385,2]
[339536719,1727682644475,-500.0,0.00014385,2]
[339536720,1727682644486,-500.0,0.00014385,2]
[339536721,1727682644497,-500.0,0.00014385,2]
[339536722,1727682644508,-500.0,0.00014385,2]
[339536723,1727682644519,-610.09,0.00014385,2]
[339536724,1727682644529,-1709.5,0.00014385,2]
[339536725,1727682644540,-500.0,0.00014385,2]
[339536726,1727682644550,-500.0,0.00014385,2]
[339536727,1727682644560,-500.0,0.00014385,2]
[339536728,1727682644569,-558.07,0.00014385,2]
[339536729,1727682644578,-500.0,0.00014385,2]
[339536730,1727682644588,-500.0,0.00014385,2]
[339536731,1727682644599,-500.0,0.00014385,2]
[339536732,1727682644609,-500.0,0.00014385,2]
[339536733,1727682644620,-500.0,0.00014385,2]
[339536734,1727682644629,-500.0,0.00014385,2]
[339536735,1727682644639,-500.0,0.00014385,2]
[339536736,1727682644649,-601.48,0.00014385,2]
[339536737,1727682644659,-500.0,0.00014385,2]
[339536738,1727682644668,-500.0,0.00014385,2]
[339536739,1727682644679,-500.0,0.00014385,2]
[339536740,1727682644688,-345.0,0.00014385,2]
[339536741,1727682644698,-612.26,0.00014385,2]
[339536742,1727682644708,-500.0,0.00014385,2]
[339536743,1727682644719,-535.43,0.00014385,2]
[339536744,1727682644729,-500.0,0.00014385,2]
[339536745,1727682644741,-500.0,0.00014385,2]
[339536746,1727682644751,-759.79,0.00014385,2]
[339536747,1727682644761,-500.0,0.00014385,2]
[339536748,1727682644772,-629.28421942,0.00014385,2]
[339536749,1727682644782,-500.0,0.00014385,2]
[339536750,1727682644796,-150.0,0.00014385,2]
[339536751,1727682644807,-500.0,0.00014385,2]
[339536752,1727682644817,-500.0,0.00014385,2]
[339536753,1727682644827,-500.0,0.00014385,2]
[339536754,1727682644837,-500.0,0.00014385,2]
[339536755,1727682644847,-1354.52,0.00014385,2]
[339536756,1727682644857,-500.0,0.00014385,2]
[339536757,1727682644867,-769.89,0.00014385,2]
[339536758,1727682644878,-534.48,0.00014385,2]
[339536759,1727682644888,-529.57,0.00014385,2]
[339536760,1727682644898,-500.0,0.00014385,2]
[339536761,1727682644907,-500.0,0.00014385,2]
[339536762,1727682644917,-512.2443999,0.00014385,2]
[339536763,1727682644928,-500.0,0.00014385,2]
[339536764,1727682644937,-528.23,0.00014385,2]
[339536765,1727682644947,-620.48,0.00014385,2]
[339536766,1727682644959,-919.16,0.00014385,2]
[339536767,1727682644969,-500.0,0.00014385,2]
[339536768,1727682644979,-600.26,0.00014385,2]
[339536769,1727682644989,-949.13,0.00014385,2]
[339536770,1727682644998,-500.0,0.00014385,2]
[339536771,1727682645008,-500.0,0.00014385,2]
[339536772,1727682645019,-500.0,0.00014385,2]
[339536773,1727682645030,-500.0,0.00014385,2]
[339536774,1727682645040,-514.42,0.00014385,2]
[339536775,1727682645050,-1440.75,0.00014385,2]
[339536776,1727682645060,-500.0,0.00014385,2]
[339536777,1727682645070,-1172.77,0.00014385,2]
[339536778,1727682645080,-500.0,0.00014385,2]
[339536779,1727682645090,-500.0,0.00014385,2]
[339536780,1727682645100,-238.27607734,0.00014385,2]
[339536781,1727682645110,-500.0,0.00014385,2]
[339536782,1727682645120,-500.0,0.00014385,2]
[339536783,1727682645130,-500.0,0.00014385,2]
[339536784,1727682645140,-500.0,0.00014385,2]
[339536785,1727682645150,-500.0,0.00014385,2]
[339536786,1727682645159,-500.0,0.00014385,2]
[339536787,1727682645168,-500.0,0.00014385,2]
[339536788,1727682645178,-500.0,0.00014385,2]
[339536789,1727682645188,-500.0,0.00014385,2]
[339536790,1727682645199,-500.0,0.00014385,2]
[339536791,1727682645209,-500.0,0.00014385,2]
[339536792,1727682645220,-2234.97,0.00014385,2]
[339536793,1727682645230,-500.0,0.00014385,2]
[339536794,1727682645240,-500.0,0.00014385,2]
[339536795,1727682645249,-500.0,0.00014385,2]
[339536796,1727682645260,-26259.94,0.00014385,2]
[339536797,1727682645270,-500.0,0.00014385,2]
[339536798,1727682645280,-582.94,0.00014385,2]
[339536799,1727682645290,-1003.02,0.00014385,2]
[339536800,1727682645302,-500.0,0.00014385,2]
[339536801,1727682645312,-500.0,0.00014385,2]
[339536802,1727682645322,-527.01,0.00014385,2]
[339536803,1727682645332,-1212.86,0.00014385,2]
[339536804,1727682645342,-500.0,0.00014385,2]
[339536805,1727682645352,-500.0,0.00014385,2]
[339536806,1727682645362,-500.0,0.00014385,2]
[339536807,1727682645374,-500.0,0.00014385,2]
[339536808,1727682645384,-3813.51,0.00014385,2]
[339536809,1727682645394,-520.87,0.00014385,2]
[339536810,1727682645404,-252.7583499,0.00014385,2]